Cogmind - Beta 14 @@@ ROGUE MODE // 2024.09.01 @ 10:48:10 Player: Fleshy Vegetable Bird Result: Destroyed by DAS Turret with DAS Cannon Performance ------------- Evolutions (1) 500 Regions Visited (5) 1000 Robots Destroyed (50) 250 Value Destroyed (1170) 1170 Prototype IDs (5) 100 Alien Tech Used (0) 0 Bonus (116) 116 TOTAL SCORE: 3136 Bonus ------- Follower Combat Kills 153 Friendly Fire -37 Cogmind --------- Core Integrity 0/400 Matter 214/300 Energy 99/100 System Corruption 4% Temperature Cool (0) Movement Core (50) Location -9/Exiles Parts ------- > --- POWER (1) -------- (None) > --- PROPULSION (3) --- (None) > --- UTILITY (3) ------ Visual Processing Unit > --- WEAPON (2) ------- (None) > --- INVENTORY (5) ---- Light Nuclear Core Experimental Sensor Array Hacking Suite EX Chip 2 Heavy Assault Rifle Peak State ------------ > --- POWER ------------ Improved Ion Engine > --- PROPULSION ------- Wheel Wheel Armored Wheel > --- UTILITY ---------- Medium Storage Unit Visual Processing Unit Experimental Sensor Array > --- WEAPON ----------- Autogun Rocket Launcher > --- INVENTORY -------- Light Nuclear Core Combat Airjet Improved Sensor Array Improved Light Armor Plating Improved Light Armor Plating Hacking Suite Heavy Assault Rifle Shotgun [Rating: 24] Favorites ----------- Power Light Ion Engine Engine Light Ion Engine Propulsion Armored Wheel Wheel Armored Wheel Flight Unit Improved Flight Unit Utility Medium Storage Unit Device Improved Terrain Scanner Storage Medium Storage Unit Processor Visual Processing Unit Protection Improved Light Armor Plating Weapon Shotgun Energy Gun Small Laser Ballistic Gun Shotgun Launcher Grenade Launcher Build | -11 -10 -10 -9 -9 -9 ------- Run | Yrd Mat Min Mat Min Exi Slots Evolved 2 | . . . 2 . . Power . | . . . . . . Propulsion 1 | . . . 1 . . Utility 1 | . . . 1 . . Weapon . | . . . . . . Parts Attached 43 | 5 8 5 15 7 3 Power 5 | 1 . 1 3 . . Engine 5 | 1 . 1 3 . . Core . | . . . . . . Reactor . | . . . . . . Propulsion 9 | 1 3 . 3 2 . Treads . | . . . . . . Leg . | . . . . . . Wheel 8 | 1 3 . 3 1 . Hover . | . . . . . . Flight 1 | . . . . 1 . Utility 10 | 1 2 . 3 1 3 Device 2 | . 1 . . . 1 Storage 3 | 1 1 . . . 1 Processor 1 | . . . 1 . . Hackware . | . . . . . . Protection 4 | . . . 2 1 1 Artifact . | . . . . . . Weapon 19 | 2 3 4 6 4 . Energy Gun 1 | 1 . . . . . Energy Cannon . | . . . . . . Ballistic Gun 12 | 1 3 2 4 2 . Ballistic Cannon . | . . . . . . Launcher 6 | . . 2 2 2 . Special Weapon . | . . . . . . Impact Weapon . | . . . . . . Slashing Weapon . | . . . . . . Piercing Weapon . | . . . . . . Special Melee Weapon . | . . . . . . Unidentified Prototypes 3 | . . . 1 1 1 Parts Lost 11 | . . 1 5 . 5 Power 3 | . . 1 1 . 1 Propulsion 6 | . . . 3 . 3 Utility 2 | . . . 1 . 1 Weapon . | . . . . . . Highest Loss Streak 5 | . . 1 2 . 5 To Critical Strikes . | . . . . . . Average Slot Usage (%) 94 | . 84 99 92 95 86 Engine 12 | . 14 13 10 11 11 Wheel 28 | . 21 28 32 28 27 Device 7 | . 6 14 7 . . Storage 12 | . 14 14 11 11 11 Processor 2 | . . . 1 11 11 Protection 4 | . . . 7 11 9 Energy Gun 1 | . 7 . . . . Ballistic Gun 18 | . 20 14 20 20 7 Launcher 5 | . . 13 1 2 7 Peak Build Rating 24 | 5 14 14 21 20 24 Average Rating 14 | 3 8 13 17 18 16 On Entrance 11 | . 5 14 13 17 19 Naked Turns . | . . . . . . Heaviest Build 27 | 10 20 20 26 27 27 Greatest Support 36 | 10 24 24 36 32 32 Greatest Overweight (x) 1 | . 1 . 1 1 1 Average Overweight (x) . | . . . . . . Largest Inventory Capacity 10 | 8 10 10 10 10 10 Average Capacity 9 | 5 8 10 10 10 9 Most Carried 10 | 5 10 10 10 10 10 Average Carried 8 | 3 7 9 8 9 9 Final Capacity 10 | 8 10 10 10 10 5 Final Carried 10 | 4 10 10 9 10 5 Class Distribution -------------------- 100% | Mutant Dominant Class ---------------- Mutant | -10/Materials Mutant | -10/Mines Mutant | -9/Materials Mutant | -9/Mines Mutant | -9/Exiles Resources | -11 -10 -10 -9 -9 -9 ----------- Run | Yrd Mat Min Mat Min Exi Matter Collected 1539 | 274 69 292 656 235 13 Remotely . | . . . . . . Salvage Created 1495 | 134 180 54 833 257 37 Parts 104 | 10 11 3 58 13 9 Haulers Intercepted 4 | . 1 . 3 . . Recyclers Shooed . | . . . . . . Parts Field Recycled . | . . . . . . Retrieved Matter . | . . . . . . Parts Self-Destructed . | . . . . . . Prevented . | . . . . . . Kills | -11 -10 -10 -9 -9 -9 ------- Run | Yrd Mat Min Mat Min Exi Combat Hostiles Destroyed 44 | . 2 9 17 10 6 Guns 21 | . 2 2 12 5 . AOE 23 | . . 7 5 5 6 Classes Destroyed 11 | 2 3 2 3 1 . Worker 1 | . . . . 1 . Tunneler 5 | 3 1 . . 1 . Hauler 4 | . 1 . 3 . . Recycler 2 | 1 . . 1 . . Mechanic 1 | . . . 1 . . Operator 1 | . . . 1 . . Watcher 3 | . 1 . 2 . . Swarmer 10 | . . 3 3 4 . Grunt 16 | . 2 . 8 6 . Sentry 6 | . . . 6 . . Assembled 12 | . . 6 . . 6 Best Kill Streak 7 | 2 2 3 4 4 7 Combat Bots Only 6 | . 2 3 4 4 6 Max Kills in Single Turn 4 | 1 1 2 2 2 4 Gunslinging . | . . . . . . Exploded 4 | . . 2 2 2 4 Melee . | . . . . . . Uniques/NPCs Destroyed 1 | . . . . . 1 EX-HEX (-9/Exiles) Combat | -11 -10 -10 -9 -9 -9 -------- Run | Yrd Mat Min Mat Min Exi Hostile Shots Fired 146 | . 9 10 75 20 32 Missed 37 | . 2 1 19 8 7 Damage Taken 2073 | . 103 234 696 203 837 Core 523 | . 74 15 39 14 381 Absorbed by Shields . | . . . . . . Core Remaining (%) 82 | 100 . 64 . . . Volleys Fired 139 | 24 23 15 59 15 3 Largest 2 | 2 2 2 2 2 1 Hottest 60 | 60 60 53 53 46 33 Shots Fired 261 | 48 45 30 108 26 4 Gun 227 | 48 45 18 96 20 . Cannon . | . . . . . . Launcher 34 | . . 12 12 6 4 Special . | . . . . . . Kinetic 184 | 24 26 18 96 20 . Thermal 43 | 24 19 . . . . Explosive 34 | . . 12 12 6 4 Electromagnetic . | . . . . . . Robot Hit Streak 10 | 5 5 5 10 6 1 Robot Miss Streak 7 | 4 7 5 5 2 4 Penetration Max . | . . . . . . Secondary Targets 1 | . . . 1 . . Max Gunslinging Chain 1 | . . . 1 . . Shots Hit Robots 141 | 25 20 13 68 14 1 Core Hits 108 | 7 13 16 42 17 13 Critical Kills 1 | . . . 1 . . Critical Parts Destroyed 1 | . 1 . . . . Critical Strikes 2 | . 1 . 1 . . Destroy 2 | . 1 . 1 . . Melee Attacks . | . . . . . . Impact . | . . . . . . Slashing . | . . . . . . Piercing . | . . . . . . Sneak Attacks . | . . . . . . Combat Hostiles . | . . . . . . Follow-up Attacks . | . . . . . . Damage Inflicted 3693 | 241 211 519 1672 622 428 Guns 1783 | 241 211 112 1025 194 . Cannons . | . . . . . . Explosions 1910 | . . 407 647 428 428 Melee . | . . . . . . Ramming . | . . . . . . Kinetic 1536 | 94 111 112 1025 194 . Thermal 290 | 147 100 43 . . . Explosive 1867 | . . 364 647 428 428 Electromagnetic . | . . . . . . Impact . | . . . . . . Slashing . | . . . . . . Piercing . | . . . . . . Highest Corruption 4 | . . . 4 4 4 Average Corruption 4 | . . . 4 4 4 Corruption Purged . | . . . . . . Corruption Blocked . | . . . . . . Effects 34 | . . . 21 11 2 Message Errors 6 | . . . 5 1 . Matter Fused 12 | . . . 7 4 1 Heat Flow Errors 1 | . . . 1 . . Energy Discharges 6 | . . . 3 3 . Data Loss (minor) 2 | . . . 1 1 . Data Loss (major) 2 | . . . 2 . . Misfires 3 | . . . . 2 1 Alerts 2 | . . . 2 . . Overload Shots . | . . . . . . Overflow Damage 86 | . . 42 2 31 11 Projectiles . | . . . . . . Explosions 86 | . . 42 2 31 11 Melee . | . . . . . . Knockbacks . | . . . . . . Impact . | . . . . . . Kinetic . | . . . . . . Secondary . | . . . . . . Self-Inflicted Damage 236 | . . 116 . 73 47 Shots 8 | . . 5 . 2 1 Rammed . | . . . . . . Targets Rammed . | . . . . . . Kicked . | . . . . . . Crushed . | . . . . . . Highest Temperature 290 | 60 117 39 290 21 12 Average Temperature 27 | 23 37 20 30 6 8 Received Heat Transfer 465 | . 57 66 282 60 . Siege Activations . | . . . . . . Robots Corrupted . | . . . . . . Combat Hostiles . | . . . . . . Parts Fried . | . . . . . . Impact Corruptions . | . . . . . . Robots Melted . | . . . . . . Combat Hostiles . | . . . . . . Parts Melted 1 | . 1 . . . . Heat Transferred 600 | 325 225 50 . . . Parts Sabotaged . | . . . . . . Parts Stolen . | . . . . . . Parts Stripped . | . . . . . . Power Chain Reactions . | . . . . . . Alert | -11 -10 -10 -9 -9 -9 ------- Run | Yrd Mat Min Mat Min Exi Peak Influence 415 | 20 112 207 415 331 . Initial 120 | . 13 13 33 120 . Average 156 | 9 66 75 254 211 . Maximum Alert Level 2 | . . 1 2 1 . Low Security (%) 63 | 100 100 80 32 54 . Level 1 35 | . . 19 64 45 . Level 2 . | . . . 2 . . Level 3 . | . . . . . . Level 4 . | . . . . . . Level 5 . | . . . . . . High Security . | . . . . . . Max Security . | . . . . . . Squads Dispatched . | . . . . . . Investigation . | . . . . . . Extermination . | . . . . . . Reinforcement . | . . . . . . Assault . | . . . . . . Garrison . | . . . . . . Intercept . | . . . . . . Searches Triggered . | . . . . . . Construction Impeded . | . . . . . . Haulers Reinforced . | . . . . . . Active Scanning Responses . | . . . . . . Cargo Convoy Interrupts . | . . . . . . Stealth | -11 -10 -10 -9 -9 -9 --------- Run | Yrd Mat Min Mat Min Exi Distress Signals 4 | . . 2 2 . . Communications Jammed . | . . . . . . Distress Signals . | . . . . . . Times Spotted 73 | . 9 11 33 11 9 Peak Tracking Total 9 | . 3 3 6 4 9 Tactical Retreats 8 | . . 2 6 . . Traps | -11 -10 -10 -9 -9 -9 ------- Run | Yrd Mat Min Mat Min Exi Traps Triggered . | . . . . . . Indirectly . | . . . . . . Trap Hack Attempts . | . . . . . . Triggered . | . . . . . . Disarmed . | . . . . . . Reprogrammed . | . . . . . . Reused 1 | . . . 1 . . Traps Extracted . | . . . . . . Installed 3 | . . . 3 . . Triggered 1 | . . . 1 . . Most Traps Carried 3 | . . 3 3 . . Machines | -11 -10 -10 -9 -9 -9 ---------- Run | Yrd Mat Min Mat Min Exi Machines Disabled 11 | . . 2 1 5 3 Max in Single Turn 4 | . . 1 1 4 2 Machines Repaired . | . . . . . . Machines Dismantled . | . . . . . . Machines Sabotaged . | . . . . . . Overloaded Fab Kills . | . . . . . . Hacking | -11 -10 -10 -9 -9 -9 --------- Run | Yrd Mat Min Mat Min Exi Machines Accessed 14 | . 4 . 10 . . Terminals 12 | . 4 . 8 . . Fabricators . | . . . . . . Repair Stations 1 | . . . 1 . . Recycling Units . | . . . . . . Scanalyzers 1 | . . . 1 . . Garrison Access . | . . . . . . Total Hacks 45 | . 17 . 28 . . Successful 29 | . 11 . 18 . . Failed 16 | . 6 . 10 . . Catastrophic 1 | . . . 1 . . Database Lockouts . | . . . . . . Manual 35 | . 16 . 19 . . Terminals 38 | . 17 . 21 . . Fabricators . | . . . . . . Repair Stations 3 | . . . 3 . . Recycling Units . | . . . . . . Scanalyzers 4 | . . . 4 . . Garrison Access . | . . . . . . Terminal Hacks 7 | . 4 . 3 . . Part Schematic 1 | . 1 . . . . Prototype ID Bank 1 | . . . 1 . . Terminal Index 2 | . 1 . 1 . . Scanalyzer Index 1 | . 1 . . . . Locate Traps 2 | . 1 . 1 . . Fabricator Hacks . | . . . . . . Repair Station Hacks 1 | . . . 1 . . Scan Component 1 | . . . 1 . . Recycling Unit Hacks . | . . . . . . Scanalyzer 4 | . . . 4 . . Insert Component 2 | . . . 2 . . Analyze 2 | . . . 2 . . Garrison Access Hacks . | . . . . . . Unauthorized Hacks 17 | . 7 . 10 . . Terminals 17 | . 7 . 10 . . Track 3 | . 1 . 2 . . Assimilate 1 | . 1 . . . . Botnet 11 | . 4 . 7 . . Operators 2 | . 1 . 1 . . Fabricators . | . . . . . . Repair Stations . | . . . . . . Recycling Units . | . . . . . . Scanalyzers . | . . . . . . Garrison Access . | . . . . . . Data Cores Recovered 1 | . . . 1 . . Used . | . . . . . . Hacking Detections 13 | . 3 . 10 . . Full Trace Events . | . . . . . . Feedback Events . | . . . . . . Feedback Blocked . | . . . . . . Robot Schematics Acquired . | . . . . . . Robots Built . | . . . . . . Authchips . | . . . . . . Time . | . . . . . . Total Robot Build Rating . | . . . . . . Part Schematics Acquired 3 | . 1 . 2 . . Parts Built . | . . . . . . Authchips . | . . . . . . Time . | . . . . . . Total Part Build Rating . | . . . . . . Parts Repaired . | . . . . . . Time . | . . . . . . Parts Recycled . | . . . . . . Recycled Matter . | . . . . . . Retrieved Matter . | . . . . . . Retrieved Components . | . . . . . . Parts Scanalyzed 2 | . . . 2 . . Part Schematics Acquired 2 | . . . 2 . . Parts Damaged 1 | . . . 1 . . Bothacking | -11 -10 -10 -9 -9 -9 ------------ Run | Yrd Mat Min Mat Min Exi Used RIF Installer . | . . . . . . Robots Hacked . | . . . . . . Non-combat . | . . . . . . Combat . | . . . . . . Robot Hacks Applied . | . . . . . . Relay Couplers Released . | . . . . . . Fabnet Peak Effective % . | . . . . . . Robots Rewired . | . . . . . . Allies Hacked . | . . . . . . Hacks Repelled . | . . . . . . Allies | -11 -10 -10 -9 -9 -9 -------- Run | Yrd Mat Min Mat Min Exi Total Allies 6 | . 1 2 . 3 . Largest Group 3 | . 1 2 2 3 . Highest-Rated Group 51 | . 10 51 51 40 . Highest-Rated Ally 31 | . 10 31 31 16 . Total Orders . | . . . . . . Ally Attacks 37 | . . 9 9 19 . Total Damage 421 | . . 83 104 234 . Kills 7 | . . 2 2 3 . Allies Corrupted . | . . . . . . Allies Melted . | . . . . . . Intel | -11 -10 -10 -9 -9 -9 ------- Run | Yrd Mat Min Mat Min Exi Robot Analysis Total . | . . . . . . Derelict Logs Recovered 2 | . . 1 . 1 . Drone Launches . | . . . . . . Drone Recoveries . | . . . . . . Exploration | -11 -10 -10 -9 -9 -9 ------------- Run | Yrd Mat Min Mat Min Exi Turns Passed 3757 | 121 559 1099 1211 668 99 Spaces Moved 2925 | 51 499 795 828 659 93 Core 8 | 5 . . . . 3 Treads . | . . . . . . Legs . | . . . . . . Wheels 2917 | 46 499 795 828 659 90 Hover . | . . . . . . Flight . | . . . . . . Fastest Speed 50 | 50 80 90 83 83 50 Average Speed 87 | 77 83 90 88 89 81 Slowest Speed 100 | 80 95 90 100 100 95 Overloaded Moves . | . . . . . . Propulsion Burnouts . | . . . . . . Robots Hopped . | . . . . . . Cave-ins Triggered . | . . . . . . Exploration Rate (%) 60 | 4 56 97 70 95 40 Regions Visited 5 Branch Regions 3 Pre-discovered Areas 2 | . . 1 . 1 . Known Exits Taken . | . . . . . . Unknown Exits Taken 5 | 1 1 1 1 1 . Scrap Searched 3 | . . 1 . 2 . Spaces Dug 15 | . . 15 . . . Terrain Destroyed 215 | . . 71 66 60 18 Melee . | . . . . . . Projectile . | . . . . . . AOE 215 | . . 71 66 60 18 Terrain Rammed . | . . . . . . Walls Destroyed . | . . . . . . Machines Disabled . | . . . . . . Actions | -11 -10 -10 -9 -9 -9 --------- Run | Yrd Mat Min Mat Min Exi Total 3884 | 90 605 1148 1205 715 121 Wait 671 | . 44 325 274 28 . Move 2920 | 50 498 794 827 658 93 Hop . | . . . . . . Pick Up 62 | 10 20 5 16 4 7 Fast Attach . | . . . . . . Attach 20 | 5 3 1 7 2 2 Detach 2 | . . . . 1 1 Swap 23 | . 5 4 8 5 1 Drop 44 | 1 12 4 11 2 14 Fire 139 | 24 23 15 59 15 3 Melee . | . . . . . . Ram . | . . . . . . Kick . | . . . . . . Crush . | . . . . . . Escape Stasis . | . . . . . . Rewire . | . . . . . . Trap 3 | . . . 3 . . Miscellaneous . | . . . . . . Route ------- -11/Scrapyard -10/Materials (discovered 3 exits: *Mat x2 / [*Min]) -10/Mines (discovered 2 exits: *Mat x2) -9/Materials (discovered 4 exits: [*Mat x3] / [*Min]) -9/Mines (discovered 3 exits: [*Mat x2] / [*Exi]) -9/Exiles (discovered 1 exit: [*Min]) History --------- Turn | Location | Event 24 | -11/Scrapyard | Discovered new exit (range 14) 122 | -11/Scrapyard | Entered Materials 130 | -10/Materials | Discovered new exit (range 16) 244 | -10/Materials | Discovered new exit (range 15) 313 | -10/Materials | Build established: Mutant 404 | -10/Materials | Discovered new exit (range 4) 681 | -10/Materials | Entered Mines 681 | -10/Mines | Accompanied by 1 ally 682 | -10/Mines | Assembled infested the area 1101 | -10/Mines | Discovered new exit (range 11) 1162 | -10/Mines | Found a hidden stash of uninstalled traps 1198 | -10/Mines | A weapon hastily lodged in a ceiling crevice suddenly fell to the ground 1211 | -10/Mines | Discovered new exit (range 8) 1780 | -10/Mines | Entered Materials 1780 | -9/Materials | Accompanied by 2 allies 1780 | -9/Materials | Evolved 2 slots: Propulsion x1, Utility x1 1785 | -9/Materials | Led the pair of lost Derelicts to an unsafe place 2081 | -9/Materials | Discovered new exit (range 16) 2607 | -9/Materials | Discovered new exit (range 10) 2845 | -9/Materials | Discovered new exit (range 9) 2900 | -9/Materials | Discovered new exit (range 15) 2991 | -9/Materials | Entered Mines 3073 | -9/Mines | Found a damaged Exp. Sensor Array with a note attached 3075 | -9/Mines | Found Prototype Device 3107 | -9/Mines | Assisted by bots powering up and referring to "LRC-V3" 3160 | -9/Mines | Deemed a non-threat by the Exiles lab entrance 3361 | -9/Mines | Discovered new exit (range 14) 3437 | -9/Mines | Discovered new exit (range 9) 3656 | -9/Mines | Discovered new exit (range 5) 3659 | -9/Mines | Entered Exiles 3674 | -9/Exiles | Identified Exp. Sensor Array 3679 | -9/Exiles | Discovered new exit (range 17) 3689 | -9/Exiles | Met 8R-AWN 3700 | -9/Exiles | Met EX-HEX 3712 | -9/Exiles | Attacked by the Exiles 3717 | -9/Exiles | Destroyed EX-HEX 3743 | -9/Exiles | Core integrity fell below 50% 3755 | -9/Exiles | Core integrity fell below 20% 3758 | -9/Exiles | Destroyed by DAS Turret with DAS Cannon Last Messages --------------- 03724_ Dropped Autogun. 03726_ Penetrated by HV Slug. 03736_ System corrupted: Matter fused (-7). 03742_ Knocked back. 03743_ Acquired 3 matter. 03746_ Imp. Light Armor Plating destroyed. 03748_ Wheel destroyed. 03749_ Acquired 10 matter. 03750_ Wheel destroyed. 03751_ Dropped Exp. Sensor Array. 03751_ Dropped EX Chip 2. 03752_ Dropped Hacking Suite. 03753_ Dropped Med. Storage Unit. 03753_ Dropped Rigged Fission Core. 03754_ Dropped Imp. Light Armor Plating. 03754_ Dropped Shotgun. 03754_ Imp. Ion Engine destroyed. 03755_ Acquired EX Chip 2. 03757_ Acquired Exp. Sensor Array. 03758_ Acquired Hacking Suite. Map ----- +----------------------------------------------------+ | ?????????????????????????????????????????????????? | | ?????????????????????????????????????????????????? | | ?????????????????????????????????????????????????? | | ?????????????????????????????????????????????????? | | ?????????????????????????????????????????????????? | | ?????????????????????????????????????????????????? | | ?????????????????????????????????????????????????? | | ?????????????????????????????????????????????????? | | ?????????????????????????????????????????????????? | | ?????????????????????????????????????????????????? | | ?????????????????????????????????????????????????? | | ?????????????????????????????????????????????????? | | ?????????????????????????????????????????????????? | | ?????????????????????????######??????????????????? | | ????????????????????????? """#?????????? ????? | | ????????????????????????"" """#?????????? ??? | | ???????????????????????#"" #????????? ??? | | ???????????????????????#"" #?????????" ?? | | ???????????????????????#"" "#?????????" ??? | | ???????????????????????? ""?????????#" "??? | | ?????????????????????????" "?????????##" #???? | | ?????????????????????????# #????????##"" #???? | | ???????????????????????### ###?######"" #???? | | ????????" """#####X#* #"###""""""" ##??? | | ????????" [! % """""" " "" ##?? | | ?????????# %!@!% ""%""" " ### | | ??????????# = " " | | ??????????### | | ????????????### | | ??????????????## | | ???????????????## | | ????????????????##" | | ?????????????????#""" """""" | | ?????????????????#" %######""" | | ?????????????????"" ""##????#####""" | | ?????????????????""" """##?????????##""" | | ?????????????????"" """##???????????#""" | | ?????????????????"" ""#???????????##"" | | ?????????????????" ##???????????#"""" | | ?????????????????"" ??????????#""" | | ?????????????????? ?????????""" | | ???????????????????? ??????? | | ?????????????????????? ?????? | | ????????????????????????? ???????? | | ??????????????????????????? ????????? "" | | ???????????????????????????????????????## ##""" " | | ????????????????????????????????????????# ??#####" | | ????????????????????????????????????????#???????## | | ?????????????????????????????????????????????????? | | ?????????????????????????????????????????????????? | +----------------------------------------------------+ Best States ------------- Heat Dissipation 28 Energy Generation 12 Energy Capacity 265 Matter Stores 300 Matter Capacity 300 Sight Range 18 Terrain Scan Range 16 Terrain Scan Density 10 Armor Coverage 150 Evasion (%) 44 Item Schematics ----------------- Lrg. Storage Unit | -10/Materials | Hacked Cmb. Airjet | -9/Materials | Scanalyzed Arm. Wheel | -9/Materials | Scanalyzed Robot Schematics ------------------ None Fabricated ------------ Nothing Alien Tech Used ----------------- None Achievements -------------- None Challenges ------------ None Game ------ Seed CoreTargetManipulator Manual? 0 Play Time 00:31:17 Cumulative 324.9 hours Start 2024.09.01 @ 10:18:35 End 2024.09.01 @ 10:48:10 Sessions 1 Manual Loads 0 Difficulty Rogue Special Mode None Game No. 373 Rogue 373 Adventurer 0 Explorer 0 Win Type - Total 6 Types 3/1/1/1/0/0/0/0/0 Lore% 39 Gallery% 71 Achievement% 67 Wizard Run 0 Options --------- Layout 1 ASCII 0 Keyboard 0 Movement Numpad Keybinds 0 Fullscreen 1 Font 32/SmallcapsGlow Map View 50x35 Zoom Use 0% Tactical HUD 1 Map Filters NONE Filters NONE Steam 1 RUN: 3c2a6c35-68fb-4a0a-9d6f-2a5b7c75885a